[Event "AUT-ch Open 2020"]
[Site "Graz"]
[Date "2020.02.19"]
[Round "7.31"]
[White "Frank, Emanuel"]
[Black "Barp, Alberto"]
[Result "0-1"]
[ECO "D30"]
[WhiteElo "2368"]
[BlackElo "2286"]
[Annotator "ChessBase"]
[PlyCount "118"]
[EventDate "2020.02.14"]
[EventType "swiss"]
[EventCountry "AUT"]
[SourceTitle "playchess.com"]
[Source "ChessBase"]
[SourceQuality "1"]
[TimeControl "40/5400+30:1800+30"]

1. d4 {[%emt 0:00:00]} d5 {[%emt 0:00:00]} 2. c4 {[%emt 0:00:00]} e6 {[%emt 0:00:00]} 3. Nf3 {[%emt 0:00:00]} Nf6 {[%emt 0:00:05]} 4. g3 {[%emt 0:00:00]} Bb4+ {[%emt 0:00:14]} 5. Bd2 {[%emt 0:00:04]} Bd6 {[%emt 0:00:35]} 6. Nc3 {[%emt 0:00:41]} O-O {[%emt 0:00:07]} 7. Bg5 {[%emt 0:00:04]} c6 {[%emt 0:01:07]} 8. Bg2 {[%emt 0:00:18]} h6 {[%emt 0:02:25]} 9. Bxf6 {[%emt 0:00:20]} Qxf6 {[%emt 0:00:04]} 10. O-O {[%emt 0:00:08]} Qd8 {[%emt 0:03:05]} 11. c5 {[%emt 0:01:34]} Bc7 {[%emt 0:04:19]} 12. e4 {[%emt 0:00:08]} Nd7 {[%emt 0:04:45]} 13. Re1 {[%emt 0:08:57]} Ba5 {[%emt 0:19:27]} 14. Qa4 {[%emt 0:10:32]} Nf6 {[%emt 0:06:48]} 15. b4 {[%emt 0:05:05]} Bc7 {[%emt 0:04:46]} 16. e5 {[%emt 0:14:40]} Ne8 {[%emt 0:04:26]} 17. Re3 {[%emt 0:08:37]} f6 {[%emt 0:07:37]} 18. Qc2 {[%emt 0:08:20]} f5 {[%emt 0:03:53]} 19. Ree1 {[%emt 0:04:20]} Qe7 {[%emt 0:00:53]} 20. h4 {[%emt 0:02:06]} g5 {[%emt 0:02:32]} 21. Ne2 {[%emt 0:03:24]} Ng7 {[%emt 0:02:28]} 22. hxg5 {[%emt 0:04:36]} hxg5 {[%emt 0:00:07]} 23. Qd2 {[%emt 0:00:11]} Bd8 {[%emt 0:00:16]} 24. a4 {[%emt 0:05:25]} Bd7 {[%emt 0:00:23]} 25. Reb1 {[%emt 0:01:10]} a6 {[%emt 0:00:19]} 26. Ne1 {[%emt 0:01:20]} Nh5 {[%emt 0:06:41]} 27. Nd3 {[%emt 0:06:23]} Qg7 {[%emt 0:01:20]} 28. Rb2 {[%emt 0:00:57]} Be8 {[%emt 0:01:23]} 29. f3 {[%emt 0:02:37]} Qh7 {[%emt 0:13:45]} 30. Kf2 {[%emt 0:01:01]} f4 {[%emt 0:00:14]} 31. Rh1 {[%emt 0:05:41]} fxg3+ {[%emt 0:01:06]} 32. Nxg3 {[%emt 0:00:12]} Nxg3 {[%emt 0:01:04]} 33. Kxg3 {[%emt 0:00:01]} Qf5 {[%emt 0:01:13]} 34. Nf2 {[%emt 0:02:43]} Bg6 {[%emt 0:00:38]} 35. Ng4 {[%emt 0:00:27]} Kg7 {[%emt 0:00:01]} 36. Nh6 {[%emt 0:03:28]} Qf4+ {[%emt 0:02:07]} 37. Kf2 {[%emt 0:00:46]} b6 {[%emt 0:02:01]} 38. Qxf4 {[%emt 0:00:57]} Rxf4 {[%emt 0:00:03]} 39. Ke3 {[%emt 0:00:27]} Rb8 {[%emt 0:00:04]} 40. Ng4 {[%emt 0:01:46]} bxc5 {[%emt 0:00:45]} 41. Rc1 {[%emt 0:06:47]} c4 {[%emt 0:02:08]} 42. Nf2 {[%emt 0:06:29]} Bb6 {[%emt 0:03:25]} 43. Rd2 {[%emt 0:00:15]} Ba7 {[%emt 0:01:05]} 44. Nh3 {[%emt 0:01:21]} Rf5 {[%emt 0:00:12]} 45. f4 {[%emt 0:03:57]} gxf4+ {[%emt 0:05:14]} 46. Nxf4 {[%emt 0:00:07]} Rxe5+ {[%emt 0:01:17]} 47. Kf3 {[%emt 0:00:07]} Rf5 {[%emt 0:02:06]} 48. Bh3 {[%emt 0:01:03]} Rf6 {[%emt 0:00:38]} 49. Kg3 {[%emt 0:06:14]} Rxb4 {[%emt 0:01:29]} 50. Nxe6+ {[%emt 0:00:05]} Kg8 {[%emt 0:00:16]} 51. Kh4 {[%emt 0:01:49]} Bb6 {[%emt 0:02:24]} 52. a5 {[%emt 0:04:09]} Bxa5 {[%emt 0:01:35]} 53. Ra2 {[%emt 0:00:03]} Rb5 {[%emt 0:00:20]} 54. Kg5 {[%emt 0:03:06]} Kf7 {[%emt 0:00:16]} 55. Rca1 {[%emt 0:00:22]} Bb4 {[%emt 0:07:34]} 56. Rxa6 {[%emt 0:00:35]} Be7 {[%emt 0:00:36]} 57. Nf4 {[%emt 0:01:49]} Rb3 {[%emt 0:00:07]} 58. Rf1 Rf5+ {[%emt 0:01:26]} 59. Kg4 {[%emt 0:00:55]} Rg5+ {[%emt 0:00:06]} 0-1

[Event "AUT-ch Open 2020"]
[Site "Graz"]
[Date "2020.02.19"]
[Round "7.32"]
[White "Szotkowski, Jakub"]
[Black "Yeritsyan, Aram"]
[Result "0-1"]
[ECO "A40"]
[WhiteElo "2283"]
[BlackElo "2283"]
[Annotator "NA"]
[PlyCount "108"]
[EventDate "2020.02.14"]
[EventType "swiss"]
[EventCountry "AUT"]
[SourceTitle "playchess.com"]
[Source "ChessBase"]
[SourceQuality "1"]
[TimeControl "40/5400+30:1800+30"]

1. d4 {[%emt 0:00:00]} Nf6 {[%emt 0:00:00]} 2. c4 {[%emt 0:00:00]} e6 {[%emt 0:00:00]} 3. g3 {[%emt 0:00:00]} Bb4+ {[%emt 0:00:00]} 4. Bd2 {[%emt 0:00:05]} c5 {[%emt 0:00:00]} 5. Bxb4 {[%emt 0:00:13]} cxb4 {[%emt 0:00:00]} 6. Bg2 {[%emt 0:00:11]} O-O {[%emt 0:00:34]} 7. e3 {[%emt 0:03:06]} a5 {[%emt 0:00:44]} 8. Ne2 {[%emt 0:02:05]} d6 {[%emt 0:00:17]} 9. Nf4 {[%emt 0:04:21]} Na6 {[%emt 0:01:24]} 10. O-O {[%emt 0:02:48]} Rb8 {[%emt 0:00:25]} 11. Nd2 {[%emt 0:04:07]} Bd7 {[%emt 0:01:09]} 12. b3 {[%emt 0:02:05]} b5 {[%emt 0:01:05]} 13. Qc2 {[%emt 0:14:42]} Qe7 {[%emt 0:03:31]} 14. Qb2 {[%emt 0:02:13]} a4 {[%emt 0:03:16]} 15. Rac1 {[%emt 0:02:19]} Rfc8 {[%emt 0:07:47]} 16. Rfd1 {[%emt 0:03:06]} bxc4 {[%emt 0:05:32]} 17. Nxc4 {[%emt 0:00:41]} Bb5 {[%emt 0:02:51]} 18. Rd2 {[%emt 0:16:16]} g5 {[%emt 0:07:01]} 19. Ne2 {[%emt 0:04:56]} a3 {[%emt 0:00:40]} 20. Qb1 {[%emt 0:06:01]} d5 {[%emt 0:04:36]} 21. Ne5 {[%emt 0:00:08]} Nd7 {[%emt 0:03:48]} 22. Nd3 {[%emt 0:05:20]} Nc7 {[%emt 0:03:37]} 23. Qc2 {[%emt 0:05:09]} Nb6 {[%emt 0:04:39]} 24. Bf1 {[%emt 0:03:48]} Ne8 {[%emt 0:01:26]} 25. Qd1 {[%emt 0:04:05]} Bxd3 {[%emt 0:04:07]} 26. Rxd3 {[%emt 0:00:05]} Rxc1 {[%emt 0:00:20]} 27. Nxc1 {[%emt 0:00:05]} Rc8 {[%emt 0:01:03]} 28. Rd2 {[%emt 0:00:20]} Nf6 {[%emt 0:03:11]} 29. Rc2 {[%emt 0:00:58]} Rxc2 {[%emt 0:00:07]} 30. Qxc2 {[%emt 0:00:05]} Ne4 {[%emt 0:00:20]} 31. Bd3 {[%emt 0:03:14]} f5 {[%emt 0:00:13]} 32. Ne2 {[%emt 0:01:01]} Kf7 {[%emt 0:02:27]} 33. g4 {[%emt 0:01:16]} h5 {[%emt 0:04:06]} 34. gxf5 {[%emt 0:02:01]} exf5 {[%emt 0:00:08]} 35. Ng3 {[%emt 0:01:14]} Qd7 {[%emt 0:02:07]} 36. Bxe4 {[%emt 0:03:51]} dxe4 {[%emt 0:00:47]} 37. Qc5 {[%emt 0:01:21]} Nd5 {[%emt 0:00:11]} 38. h3 {[%emt 0:03:31]} h4 {[%emt 0:01:23]} 39. Nf1 {[%emt 0:00:03]} f4 {[%emt 0:02:03]} 40. Nh2 {[%emt 0:01:49]} fxe3 {[%emt 0:00:44]} 41. fxe3 {[%emt 0:02:32]} Nxe3 {[%emt 0:02:03]} 42. Qxb4 {[%emt 0:05:41]} Qxh3 {[%emt 0:21:22]} 43. Qb7+ {[%emt 0:00:08]} Kf6 {[%emt 0:00:14]} 44. Qb6+ {[%emt 0:01:29]} Qe6 {[%emt 0:00:15]} 45. Qd8+ {[%emt 0:00:16]} Kg6 {[%emt 0:00:07]} 46. Kf2 {[%emt 0:01:17]} Nd5 {[%emt 0:02:25]} 47. Ke1 {[%emt 0:00:39]} Nf6 {[%emt 0:01:07]} 48. Nf1 {[%emt 0:01:18]} Qc6 {[%emt 0:01:37]} 49. Qa5 {[%emt 0:03:46]} Qc1+ {[%emt 0:00:26]} 50. Kf2 {[%emt 0:00:54]} Qf4+ {[%emt 0:00:26]} 51. Ke1 {[%emt 0:00:10]} Qc1+ {[%emt 0:03:00]} 52. Kf2 {[%emt 0:00:06]} Ng4+ {[%emt 0:00:44]} 53. Ke2 {[%emt 0:00:09]} Qb2+ {[%emt 0:00:44]} 54. Qd2 {[%emt 0:00:36]} e3 {[%emt 0:00:12]} 0-1

[Event "AUT-ch Open 2020"]
[Site "Graz"]
[Date "2020.02.19"]
[Round "7.33"]
[White "Papakonstantinou, Dimitrios"]
[Black "Tuncer, Tuna"]
[Result "0-1"]
[ECO "B90"]
[WhiteElo "2275"]
[BlackElo "2275"]
[Annotator "NA"]
[PlyCount "74"]
[EventDate "2020.02.14"]
[EventType "swiss"]
[EventCountry "AUT"]
[SourceTitle "playchess.com"]
[Source "ChessBase"]
[SourceQuality "1"]
[TimeControl "40/5400+30:1800+30"]

1. e4 {[%emt 0:00:00]} c5 {[%emt 0:00:00]} 2. Nf3 {[%emt 0:00:00]} d6 {[%emt 0:00:00]} 3. d4 {[%emt 0:00:01]} cxd4 {[%emt 0:00:06]} 4. Nxd4 {[%emt 0:00:05]} Nf6 {[%emt 0:00:11]} 5. Nc3 {[%emt 0:00:04]} a6 {[%emt 0:00:13]} 6. Be3 {[%emt 0:03:22]} e5 {[%emt 0:02:37]} 7. Nb3 {[%emt 0:00:06]} Be6 {[%emt 0:00:21]} 8. f3 {[%emt 0:00:17]} Be7 {[%emt 0:00:19]} 9. Qd2 {[%emt 0:00:10]} O-O {[%emt 0:00:16]} 10. O-O-O {[%emt 0:00:08]} Nbd7 {[%emt 0:00:31]} 11. g4 {[%emt 0:01:15]} b5 {[%emt 0:00:27]} 12. Rg1 {[%emt 0:07:29]} Nb6 {[%emt 0:00:35]} 13. g5 {[%emt 0:03:30]} Nh5 {[%emt 0:00:24]} 14. Na5 {[%emt 0:00:36]} Qc7 {[%emt 0:00:56]} 15. Nd5 {[%emt 0:04:47]} Nxd5 {[%emt 0:00:25]} 16. exd5 {[%emt 0:00:03]} Bd7 {[%emt 0:00:08]} 17. Bd3 {[%emt 0:16:34]} g6 {[%emt 0:18:35]} 18. Nc6 {[%emt 0:04:38]} Bxc6 {[%emt 0:02:37]} 19. dxc6 {[%emt 0:00:05]} d5 {[%emt 0:00:11]} 20. c3 {[%emt 0:03:39]} Qxc6 {[%emt 0:04:09]} 21. Bc2 {[%emt 0:01:01]} Rad8 {[%emt 0:16:24]} 22. Kb1 {[%emt 0:02:10]} Rd7 {[%emt 0:04:16]} 23. Bb3 {[%emt 0:03:14]} Rfd8 {[%emt 0:00:12]} 24. Qf2 {[%emt 0:00:37]} Ng7 {[%emt 0:09:35]} 25. h4 {[%emt 0:09:45]} Nf5 {[%emt 0:03:00]} 26. Rge1 {[%emt 0:00:04]} b4 {[%emt 0:09:19]} 27. Bc1 {[%emt 0:07:40]} bxc3 {[%emt 0:02:16]} 28. Rxe5 {[%emt 0:02:20]} d4 {[%emt 0:01:45]} 29. bxc3 {[%emt 0:01:07]} dxc3 {[%emt 0:00:19]} 30. Rde1 {[%emt 0:00:50]} Rd2 {[%emt 0:05:52]} 31. R5e2 {[%emt 0:04:59]} c2+ {[%emt 0:05:32]} 32. Kb2 {[%emt 0:00:17]} Bb4 {[%emt 0:00:46]} 33. a3 {[%emt 0:03:28]} Qc3+ {[%emt 0:02:16]} 34. Ka2 {[%emt 0:00:02]} Nd4 {[%emt 0:05:09]} 35. Re8+ {[%emt 0:02:00]} Rxe8 {[%emt 0:01:27]} 36. Rxe8+ {[%emt 0:00:12]} Bf8 {[%emt 0:00:04]} 37. Re3 {[%emt 0:03:15]} Qxb3+ {[%emt 0:00:20]} 0-1

[Event "AUT-ch Open 2020"]
[Site "Graz"]
[Date "2020.02.19"]
[Round "7.34"]
[White "Chylewski, Patryk"]
[Black "Bakalarz, Mietek"]
[Result "1-0"]
[ECO "A06"]
[WhiteElo "2245"]
[BlackElo "2245"]
[Annotator "NA"]
[PlyCount "65"]
[EventDate "2020.02.14"]
[EventType "swiss"]
[EventCountry "AUT"]
[SourceTitle "playchess.com"]
[Source "ChessBase"]
[SourceQuality "1"]
[TimeControl "40/5400+30:1800+30"]

1. Nf3 {[%emt 0:00:00]} d5 {[%emt 0:00:00]} 2. d4 {[%emt 0:00:00]} Bf5 {[%emt 0:00:00]} 3. c4 {[%emt 0:00:13]} e6 {[%emt 0:00:02]} 4. Nc3 {[%emt 0:00:05]} Nc6 {[%emt 0:02:05]} 5. cxd5 {[%emt 0:04:15]} exd5 {[%emt 0:00:10]} 6. Bf4 {[%emt 0:00:34]} Bd6 {[%emt 0:00:29]} 7. Bg3 {[%emt 0:09:20]} Nf6 {[%emt 0:01:16]} 8. e3 {[%emt 0:00:12]} O-O {[%emt 0:11:11]} 9. Bd3 {[%emt 0:01:14]} Bxd3 {[%emt 0:20:59]} 10. Qxd3 {[%emt 0:00:07]} Nb4 {[%emt 0:00:10]} 11. Qd1 {[%emt 0:01:57]} Ne4 {[%emt 0:03:36]} 12. O-O {[%emt 0:13:53]} Nxg3 {[%emt 0:02:26]} 13. hxg3 {[%emt 0:00:07]} c6 {[%emt 0:00:04]} 14. a3 {[%emt 0:09:43]} Na6 {[%emt 0:00:05]} 15. b4 {[%emt 0:00:44]} Nc7 {[%emt 0:00:10]} 16. b5 {[%emt 0:02:00]} cxb5 {[%emt 0:14:06]} 17. Qb3 {[%emt 0:00:45]} a6 {[%emt 0:02:41]} 18. Nxd5 {[%emt 0:07:29]} Nxd5 {[%emt 0:02:44]} 19. Qxd5 {[%emt 0:00:14]} Qe7 {[%emt 0:00:12]} 20. a4 {[%emt 0:03:11]} bxa4 {[%emt 0:01:29]} 21. Rxa4 {[%emt 0:00:11]} b5 {[%emt 0:02:13]} 22. Ra5 {[%emt 0:05:46]} Rfd8 {[%emt 0:03:31]} 23. Qa2 {[%emt 0:04:02]} Qb7 {[%emt 0:15:43]} 24. Ra1 {[%emt 0:00:26]} b4 {[%emt 0:04:22]} 25. Nd2 {[%emt 0:00:35]} Qe7 {[%emt 0:06:27]} 26. Nc4 {[%emt 0:06:01]} Rab8 {[%emt 0:02:32]} 27. Qb3 {[%emt 0:00:21]} Rb5 {[%emt 0:02:02]} 28. Rxa6 {[%emt 0:00:18]} Bb8 {[%emt 0:00:06]} 29. Na5 {[%emt 0:03:39]} Rc8 {[%emt 0:01:55]} 30. Nc6 {[%emt 0:00:20]} Qb7 {[%emt 0:00:42]} 31. d5 {[%emt 0:03:51]} Qd7 {[%emt 0:00:01]} 32. Qc4 {[%emt 0:00:34]} Rb7 {[%emt 0:00:22]} 33. Ne7+ {[%emt 0:00:14]} 1-0

[Event "AUT-ch Open 2020"]
[Site "Graz"]
[Date "2020.02.19"]
[Round "7.35"]
[White "Pasti, Aron"]
[Black "Paltrinieri, Nicholas"]
[Result "1-0"]
[ECO "C15"]
[WhiteElo "2247"]
[BlackElo "2247"]
[Annotator "NA"]
[PlyCount "67"]
[EventDate "2020.02.14"]
[EventType "swiss"]
[EventCountry "AUT"]
[SourceTitle "playchess.com"]
[Source "ChessBase"]
[SourceQuality "1"]
[TimeControl "40/5400+30:1800+30"]

1. e4 {[%emt 0:00:00]} e6 {[%emt 0:00:00]} 2. d4 {[%emt 0:00:00]} d5 {[%emt 0:00:00]} 3. Nc3 {[%emt 0:00:00]} Bb4 {[%emt 0:00:00]} 4. Bd2 {[%emt 0:00:00]} dxe4 {[%emt 0:05:54]} 5. Qg4 {[%emt 0:04:48]} Nf6 {[%emt 0:00:39]} 6. Qxg7 {[%emt 0:00:46]} Rg8 {[%emt 0:00:05]} 7. Qh6 {[%emt 0:00:04]} Qxd4 {[%emt 0:17:05]} 8. O-O-O {[%emt 0:01:38]} Rg6 {[%emt 0:02:58]} 9. Qh4 {[%emt 0:01:15]} Rg4 {[%emt 0:03:45]} 10. Qh6 {[%emt 0:03:30]} Bf8 {[%emt 0:11:39]} 11. Qxf8+ {[%emt 0:02:14]} Kxf8 {[%emt 0:00:05]} 12. Bh6+ {[%emt 0:00:06]} Ke8 {[%emt 0:00:51]} 13. Rxd4 {[%emt 0:00:42]} e5 {[%emt 0:00:05]} 14. Rd1 {[%emt 0:00:36]} Be6 {[%emt 0:00:14]} 15. Nge2 {[%emt 0:01:41]} c6 {[%emt 0:02:21]} 16. Ng3 {[%emt 0:02:58]} Ng8 {[%emt 0:03:16]} 17. Be3 {[%emt 0:04:02]} f5 {[%emt 0:00:06]} 18. f3 {[%emt 0:01:11]} Rg6 {[%emt 0:01:21]} 19. Bd2 {[%emt 0:02:14]} e3 {[%emt 0:00:05]} 20. Be1 {[%emt 0:00:20]} Ne7 {[%emt 0:01:39]} 21. Bd3 {[%emt 0:01:31]} Nd7 {[%emt 0:00:21]} 22. Nf1 {[%emt 0:03:19]} Nc5 {[%emt 0:04:37]} 23. Nxe3 {[%emt 0:01:00]} Nxd3+ {[%emt 0:00:08]} 24. cxd3 {[%emt 0:03:12]} f4 {[%emt 0:01:25]} 25. Nc4 {[%emt 0:00:58]} Bxc4 {[%emt 0:00:23]} 26. dxc4 {[%emt 0:00:03]} Rxg2 {[%emt 0:00:05]} 27. Ne4 {[%emt 0:01:23]} b5 {[%emt 0:10:56]} 28. Bb4 {[%emt 0:02:34]} bxc4 {[%emt 0:02:37]} 29. Nd6+ {[%emt 0:00:10]} Kd7 {[%emt 0:00:05]} 30. Nxc4+ {[%emt 0:01:03]} Nd5 {[%emt 0:00:01]} 31. Nxe5+ {[%emt 0:01:51]} Ke6 {[%emt 0:00:06]} 32. Nd3 {[%emt 0:01:35]} Rb8 {[%emt 0:00:11]} 33. Rd2 {[%emt 0:03:11]} Nxb4 {[%emt 0:00:36]} 34. Nxf4+ {[%emt 0:00:06] Kd5} 1-0

[Event "AUT-ch Open 2020"]
[Site "Graz"]
[Date "2020.02.19"]
[Round "7.36"]
[White "Palczert, Matyas"]
[Black "Stoleriu, George"]
[Result "0-1"]
[ECO "C01"]
[WhiteElo "2094"]
[BlackElo "2094"]
[Annotator "NA"]
[PlyCount "121"]
[EventDate "2020.02.14"]
[EventType "swiss"]
[EventCountry "AUT"]
[SourceTitle "playchess.com"]
[Source "ChessBase"]
[SourceQuality "1"]
[TimeControl "40/5400+30:1800+30"]

1. e4 {[%emt 0:00:00]} e6 {[%emt 0:00:00]} 2. d4 {[%emt 0:00:00]} d5 {[%emt 0:00:00]} 3. exd5 {[%emt 0:00:00]} exd5 {[%emt 0:00:00]} 4. Nf3 {[%emt 0:00:00]} Bd6 {[%emt 0:00:00]} 5. c4 {[%emt 0:00:04]} c6 {[%emt 0:01:07]} 6. Nc3 {[%emt 0:03:26]} Ne7 {[%emt 0:00:03]} 7. Bd3 {[%emt 0:06:57]} dxc4 {[%emt 0:03:22]} 8. Bxc4 {[%emt 0:00:08]} O-O {[%emt 0:00:06]} 9. O-O {[%emt 0:00:31]} Bg4 {[%emt 0:00:57]} 10. h3 {[%emt 0:00:58]} Bh5 {[%emt 0:00:08]} 11. g4 {[%emt 0:02:27]} Bg6 {[%emt 0:00:05]} 12. Ne5 {[%emt 0:01:51]} c5 {[%emt 0:31:19]} 13. Nxg6 {[%emt 0:03:57]} Nxg6 {[%emt 0:00:14]} 14. dxc5 {[%emt 0:01:19]} Bxc5 {[%emt 0:00:05]} 15. Qxd8 {[%emt 0:06:14]} Rxd8 {[%emt 0:00:01]} 16. Be3 {[%emt 0:00:58]} Bxe3 {[%emt 0:03:26]} 17. fxe3 {[%emt 0:00:09]} Ne5 {[%emt 0:00:25]} 18. Bd5 {[%emt 0:01:10]} Nbd7 {[%emt 0:03:12]} 19. Rf2 {[%emt 0:02:14]} Nc5 {[%emt 0:04:56]} 20. Raf1 {[%emt 0:02:50]} Rd7 {[%emt 0:01:12]} 21. e4 {[%emt 0:04:32]} Re8 {[%emt 0:07:14]} 22. Nb5 {[%emt 0:04:25]} b6 {[%emt 0:02:09]} 23. a3 {[%emt 0:07:21]} a6 {[%emt 0:07:56]} 24. Nc3 {[%emt 0:00:40]} h6 {[%emt 0:08:43]} 25. Rg2 {[%emt 0:03:53]} Ncd3 {[%emt 0:01:44]} 26. h4 {[%emt 0:04:09]} Rd6 {[%emt 0:10:10]} 27. g5 {[%emt 0:01:37]} h5 {[%emt 0:00:33]} 28. g6 {[%emt 0:00:48]} Re7 {[%emt 0:01:36]} 29. gxf7+ {[%emt 0:00:44]} Nxf7 {[%emt 0:00:48]} 30. Rd2 {[%emt 0:00:39]} Rg6+ {[%emt 0:01:45]} 31. Rg2 {[%emt 0:03:02]} Rd6 {[%emt 0:04:39]} 32. Rf5 {[%emt 0:03:31]} g6 {[%emt 0:02:21]} 33. Rf1 {[%emt 0:06:55]} Kg7 {[%emt 0:01:43]} 34. Ne2 {[%emt 0:04:53]} Rf6 {[%emt 0:01:31]} 35. Rxf6 {[%emt 0:02:34]} Kxf6 {[%emt 0:00:01]} 36. Bc4 {[%emt 0:00:44]} Nxb2 {[%emt 0:01:23]} 37. Bxa6 {[%emt 0:02:27]} Rxe4 {[%emt 0:01:44]} 38. Nc3 {[%emt 0:01:23]} Re1+ {[%emt 0:00:26]} 39. Kh2 {[%emt 0:00:41]} Nd1 {[%emt 0:00:46]} 40. Nd5+ {[%emt 0:00:23]} Kg7 {[%emt 0:01:34]} 41. Be2 {[%emt 0:33:59]} Kh6 {[%emt 0:10:05]} 42. Bxd1 {[%emt 0:00:00]} Rxd1 {[%emt 0:00:07]} 43. Nxb6 {[%emt 0:00:00]} Rd4 {[%emt 0:05:13]} 44. a4 {[%emt 0:00:00]} Rxh4+ {[%emt 0:00:05]} 45. Kg1 {[%emt 0:00:00]} Rb4 {[%emt 0:01:22]} 46. a5 {[%emt 0:00:00]} Rb1+ {[%emt 0:00:05]} 47. Kh2 {[%emt 0:00:00]} Ra1 {[%emt 0:00:08]} 48. Nc4 {[%emt 0:00:00]} Ra4 {[%emt 0:00:46]} 49. Rc2 {[%emt 0:00:00]} h4 {[%emt 0:01:09]} 50. Rf2 {[%emt 0:00:00]} Rxc4 {[%emt 0:01:36]} 51. Rxf7 {[%emt 0:00:00]} Ra4 {[%emt 0:00:23]} 52. Ra7 {[%emt 0:00:00]} Kh5 {[%emt 0:00:18]} 53. a6 {[%emt 0:00:00]} Kg4 {[%emt 0:00:31]} 54. Ra8 {[%emt 0:00:00]} Ra2+ {[%emt 0:00:12]} 55. Kg1 {[%emt 0:00:00]} Kg3 {[%emt 0:00:45]} 56. Kf1 {[%emt 0:00:00]} h3 {[%emt 0:02:32]} 57. Rb8 {[%emt 0:00:00]} Ra1+ {[%emt 0:00:20]} 58. Ke2 {[%emt 0:00:00]} h2 {[%emt 0:00:10]} 59. Rb3+ {[%emt 0:00:00]} Kg2 {[%emt 0:00:12]} 60. a7 {[%emt 0:00:00]} h1=Q {[%emt 0:00:32]} 61. Kd3 0-1

[Event "AUT-ch Open 2020"]
[Site "Graz"]
[Date "2020.02.20"]
[Round "8.1"]
[White "Zverev, Lev"]
[Black "Manush Shah"]
[Result "1/2-1/2"]
[ECO "B33"]
[WhiteElo "1914"]
[BlackElo "2322"]
[Annotator "NA"]
[PlyCount "101"]
[EventDate "2020.02.14"]
[EventType "swiss"]
[EventCountry "AUT"]
[SourceTitle "playchess.com"]
[Source "ChessBase"]
[SourceQuality "1"]
[TimeControl "40/5400+30:1800+30"]

1. e4 {[%emt 0:00:00]} c5 {[%emt 0:00:34]} 2. Nf3 {[%emt 0:00:00]} Nc6 {[%emt 0:00:10]} 3. d4 {[%emt 0:00:02]} cxd4 {[%emt 0:00:07]} 4. Nxd4 {[%emt 0:00:05]} Nf6 {[%emt 0:00:30]} 5. Nc3 {[%emt 0:00:07]} e5 {[%emt 0:00:05]} 6. Ndb5 {[%emt 0:00:05]} d6 {[%emt 0:00:07]} 7. Bg5 {[%emt 0:00:06]} a6 {[%emt 0:00:06]} 8. Na3 {[%emt 0:00:06]} b5 {[%emt 0:00:08]} 9. Bxf6 {[%emt 0:00:06]} gxf6 {[%emt 0:00:05]} 10. Nd5 {[%emt 0:00:04]} f5 {[%emt 0:00:09]} 11. g3 {[%emt 0:00:07]} Bg7 {[%emt 0:00:38]} 12. Bg2 {[%emt 0:00:07]} fxe4 {[%emt 0:00:52]} 13. Bxe4 {[%emt 0:01:06]} Be6 {[%emt 0:00:15]} 14. Qh5 {[%emt 0:01:16]} Rb8 {[%emt 0:02:33]} 15. O-O {[%emt 0:01:38]} h6 {[%emt 0:04:37]} 16. c3 {[%emt 0:08:55]} O-O {[%emt 0:01:58]} 17. Nc2 {[%emt 0:00:21]} f5 {[%emt 0:00:55]} 18. Bg2 {[%emt 0:00:28]} Ne7 {[%emt 0:03:01]} 19. Ncb4 {[%emt 0:01:39]} Nxd5 {[%emt 0:01:33]} 20. Nxd5 {[%emt 0:00:39]} Qd7 {[%emt 0:04:51]} 21. Qh4 {[%emt 0:05:41]} a5 {[%emt 0:12:29]} 22. Rfd1 {[%emt 0:12:30]} Kh7 {[%emt 0:19:40]} 23. Qe7 {[%emt 0:01:21]} Rf7 {[%emt 0:02:01]} 24. Qxd7 {[%emt 0:00:42]} Rxd7 {[%emt 0:00:30]} 25. Rd2 {[%emt 0:00:53]} Kg6 {[%emt 0:01:41]} 26. a4 {[%emt 0:00:44]} Kf7 {[%emt 0:03:28]} 27. Ne3 {[%emt 0:06:56]} e4 {[%emt 0:03:15]} 28. axb5 {[%emt 0:02:47]} Rxb5 {[%emt 0:00:17]} 29. Bf1 {[%emt 0:00:07]} Rc5 {[%emt 0:01:58]} 30. Nc2 {[%emt 0:01:19]} Be5 {[%emt 0:13:53]} 31. Nd4 {[%emt 0:00:19]} Rb7 {[%emt 0:00:22]} 32. Nxe6 {[%emt 0:05:14]} Kxe6 {[%emt 0:00:25]} 33. Ra4 {[%emt 0:05:19]} d5 {[%emt 0:03:08]} 34. f3 {[%emt 0:03:17]} Kf6 {[%emt 0:08:00]} 35. f4 {[%emt 0:01:05]} Bc7 {[%emt 0:01:53]} 36. Kf2 {[%emt 0:00:38]} Bb6 {[%emt 0:01:59]} 37. Ke1 {[%emt 0:00:05]} Rd7 {[%emt 0:01:31]} 38. Rad4 {[%emt 0:00:42]} Ke6 {[%emt 0:04:18]} 39. c4 {[%emt 0:01:33]} Rxc4 {[%emt 0:01:16]} 40. Rxc4 {[%emt 0:00:32]} dxc4 {[%emt 0:00:07]} 41. Bxc4+ {[%emt 0:30:05]} Ke7 {[%emt 0:30:07]} 42. Rxd7+ {[%emt 0:00:06]} Kxd7 {[%emt 0:00:03]} 43. h3 {[%emt 0:00:30]} Bc7 {[%emt 0:00:09]} 44. Ke2 {[%emt 0:00:15]} Ke7 {[%emt 0:00:23]} 45. b3 {[%emt 0:00:07]} Kf6 {[%emt 0:00:21]} 46. Ke3 {[%emt 0:00:23]} Bb6+ {[%emt 0:00:09]} 47. Ke2 {[%emt 0:00:05]} Bd4 {[%emt 0:00:21]} 48. Bg8 {[%emt 0:00:18]} Bb6 {[%emt 0:00:13]} 49. Bc4 {[%emt 0:00:08]} Bd4 {[%emt 0:00:15]} 50. Bg8 {[%emt 0:00:05]} Bb6 {[%emt 0:00:02]} 51. Bc4 {[%emt 0:00:06]} 1/2-1/2

[Event "AUT-ch Open 2020"]
[Site "Graz"]
[Date "2020.02.20"]
[Round "8.5"]
[White "Leisch, Lukas"]
[Black "Frosch, Erich"]
[Result "1-0"]
[ECO "A05"]
[WhiteElo "2352"]
[BlackElo "2210"]
[Annotator "NA"]
[PlyCount "73"]
[EventDate "2020.02.14"]
[EventType "swiss"]
[EventCountry "AUT"]
[SourceTitle "playchess.com"]
[Source "ChessBase"]
[SourceQuality "1"]
[TimeControl "40/5400+30:1800+30"]

1. g3 {[%emt 0:00:00]} g6 {[%emt 0:00:00]} 2. Bg2 {[%emt 0:00:00]} Bg7 {[%emt 0:00:00]} 3. Nf3 {[%emt 0:00:27]} Nf6 {[%emt 0:00:00]} 4. O-O {[%emt 0:00:10]} O-O {[%emt 0:00:00]} 5. d3 {[%emt 0:00:55]} c5 {[%emt 0:00:10]} 6. Nbd2 {[%emt 0:00:41]} Nc6 {[%emt 0:00:09]} 7. a3 {[%emt 0:01:13]} d6 {[%emt 0:00:05]} 8. Rb1 {[%emt 0:05:02]} Qc7 {[%emt 0:01:34]} 9. c4 {[%emt 0:02:29]} b6 {[%emt 0:00:24]} 10. b4 {[%emt 0:02:13]} Bb7 {[%emt 0:00:28]} 11. Bb2 {[%emt 0:04:41]} e5 {[%emt 0:02:56]} 12. Ne1 {[%emt 0:05:47]} Rae8 {[%emt 0:01:19]} 13. e3 {[%emt 0:15:50]} Re7 {[%emt 0:07:15]} 14. Nc2 {[%emt 0:01:57]} Rfe8 {[%emt 0:00:17]} 15. b5 {[%emt 0:01:34]} Nd8 {[%emt 0:00:46]} 16. Bxb7 {[%emt 0:00:30]} Qxb7 {[%emt 0:00:06]} 17. e4 {[%emt 0:00:27]} Qd7 {[%emt 0:00:28]} 18. Kg2 {[%emt 0:13:34]} Ne6 {[%emt 0:06:11]} 19. Nf3 {[%emt 0:10:24]} Nh5 {[%emt 0:04:10]} 20. Ne3 {[%emt 0:01:52]} Rf8 {[%emt 0:00:33]} 21. Nh4 {[%emt 0:04:36]} Ree8 {[%emt 0:04:29]} 22. Nd5 {[%emt 0:01:58]} Ng5 {[%emt 0:03:16]} 23. Nf5 {[%emt 0:03:06]} Nf6 {[%emt 0:04:36]} 24. Nxg7 {[%emt 0:06:26]} Kxg7 {[%emt 0:00:15]} 25. Nxf6 {[%emt 0:00:43]} Kxf6 {[%emt 0:00:56]} 26. f4 {[%emt 0:00:31]} Qh3+ {[%emt 0:01:20]} 27. Kh1 {[%emt 0:00:41]} Ne6 {[%emt 0:00:16]} 28. fxe5+ {[%emt 0:00:41]} Ke7 {[%emt 0:00:13]} 29. exd6+ {[%emt 0:00:23]} Kxd6 {[%emt 0:01:23]} 30. d4 {[%emt 0:16:09]} Kc7 {[%emt 0:00:50]} 31. d5 {[%emt 0:00:00]} Nd4 {[%emt 0:07:08]} 32. Bxd4 {[%emt 0:00:00]} cxd4 {[%emt 0:00:09]} 33. Qxd4 {[%emt 0:00:00]} f6 {[%emt 0:03:07]} 34. c5 {[%emt 0:00:00]} bxc5 {[%emt 0:03:13]} 35. Qxc5+ {[%emt 0:00:00]} Kd8 {[%emt 0:00:22]} 36. Rbc1 {[%emt 0:00:00]} Rf7 {[%emt 0:02:56]} 37. Qd6+ {[%emt 0:00:00]} 1-0